fUSD/lending_fUSD_20240409
["ID","MTS","AMOUNT","RATE_DAILY","PERIOD"]
[321977021,1712669433481,-1853.34,0.00020415,2]
[321977022,1712669433492,-3941.86,0.00020415,2]
[321977023,1712669433501,-500.0,0.00020415,2]
[321977024,1712669433510,-500.0,0.00020415,2]
[321977025,1712669433520,-2220.46,0.00020415,2]
[321977026,1712669433530,-5609.13,0.00020415,2]
[321977027,1712669433539,-500.0,0.00020415,2]
[321977028,1712669433548,-500.0,0.00020415,2]
[321977029,1712669433558,-500.0,0.00020415,2]
[321977030,1712669433567,-2903.58,0.00020415,2]
[321977031,1712669433576,-500.0,0.00020415,2]
[321977032,1712669433585,-5878.37,0.00020415,2]
[321977033,1712669433597,-500.0,0.00020415,2]
[321977034,1712669433606,-948.98,0.00020415,2]
[321977035,1712669433616,-4885.82,0.00020415,2]
[321977036,1712669433625,-500.0,0.00020415,2]
[321977037,1712669433635,-2717.92,0.00020416,2]
[321977038,1712669433644,-8277.76,0.00020416,2]
[321977039,1712669433654,-2993.77,0.00020416,2]
[321977040,1712669433663,-4795.44,0.00020416,2]
[321977041,1712669433673,-2348.81,0.00020416,2]
[321977042,1712669433683,-500.0,0.00020416,2]
[321977043,1712669433692,-2333.53,0.00020416,2]
[321977044,1712669433702,-1370.22,0.00020416,2]
[321977045,1712669433711,-2182.34,0.00020416,2]
[321977046,1712669433721,-2507.94,0.00020416,2]
[321977047,1712669433730,-2390.18,0.00020416,2]
[321977048,1712669433740,-267.46764335,0.00020416,2]
[321977049,1712669433766,-2108.89235665,0.00020416,2]
[321977050,1712669433775,-5058.16,0.00020416,2]
[321977051,1712669433785,-89.72896809,0.00020416,2]
[321977052,1712669438929,-809.38771434,0.00019128,2]
[321977053,1712669438940,-470.24932596,0.00020407,2]
[321977054,1712669438950,-538.3,0.00020414,2]
[321977055,1712669438959,-500.0,0.00020415,2]
[321977056,1712669438969,-492.28467797,0.00020415,2]
[321977057,1712669438979,-2869.03,0.00020415,2]
[321977058,1712669438988,-1493.11103191,0.00020416,2]
[321977059,1712669438997,-4354.56,0.00020416,2]
[321977060,1712669439006,-989.75571329,0.00020416,2]
[321977061,1712669439182,-1703.41591,0.00020416,2]
[321977063,1712669440362,-500.0,0.00020415,2]
[321977064,1712669440371,-186.28268305,0.00020416,2]
[321977065,1712669440692,-2305.80569366,0.00020416,2]
[321977066,1712669440701,-381.2437,0.00020416,2]
[321977067,1712669440935,-0.14568243,0.00020416,2]
[321977068,1712669440947,-676.36061757,0.00020416,2]
[321977069,1712669440956,-2591.70630623,0.00020416,2]
[321977087,1712669443640,-500.0,0.00020414,2]
[321977088,1712669443650,-2604.67,0.00020415,2]
[321977089,1712669443660,-5951.59266105,0.00020416,2]
[321977090,1712669443675,-2891.45218031,0.00020416,2]
[321977091,1712669443705,-5453.43885241,0.00020416,2]
[321977092,1712669443715,-3345.61,0.00020416,2]
[321977093,1712669443725,-1311.3,0.00020416,2]
[321977094,1712669443734,-513.1879088,0.00020416,2]
[321977095,1712669443746,-3620.85031192,0.00020416,2]
[321977096,1712669443759,-1339.677557,0.00020416,2]
[321977097,1712669443771,-2232.09422228,0.00020416,2]
[321977098,1712669443781,-2122.98,0.00020416,2]
[321977099,1712669443791,-3027.36,0.00020416,2]
[321977100,1712669443803,-500.0,0.00020416,2]
[321977101,1712669443814,-23.20409961,0.00020416,2]
[321977102,1712669443826,-476.79590039,0.00020416,2]
[321977103,1712669443836,-1504.943032,0.00020416,2]
[321977148,1712669446327,25000.0,0.00032765,30]
[321977149,1712669446475,-408.15974753,0.00020414,2]
[321977150,1712669446485,-163.90456027,0.00020414,2]
[321977151,1712669446495,-500.0,0.00020414,2]
[321977152,1712669446504,-765.97,0.00020415,2]
[321977153,1712669446513,-77.496968,0.00020416,2]
[321977154,1712669446523,-2719.32,0.00020416,2]
[321977155,1712669446532,-3205.12,0.00020416,2]
[321977156,1712669446542,-4727.66,0.00020416,2]
[321977157,1712669446552,-4843.57,0.00020416,2]
[321977158,1712669446561,-4220.46,0.00020416,2]
[321977159,1712669446570,-2080.04,0.00020416,2]
[321977160,1712669446580,-1558.71,0.00020416,2]
[321977161,1712669446590,-500.0,0.00020416,2]
[321977162,1712669446599,-1587.21,0.00020416,2]
[321977163,1712669446610,-1426.67,0.00020416,2]
[321977164,1712669446619,-3204.87,0.00020416,2]
[321977165,1712669446629,-2122.68,0.00020416,2]
[321977166,1712669446638,-3785.14,0.00020416,2]
[321977167,1712669446647,-578.63,0.00020417,2]
[321977168,1712669446656,-1276.04,0.00020417,2]
[321977169,1712669446665,-500.0,0.00020417,2]
[321977170,1712669446674,-1087.06,0.00020417,2]
[321977171,1712669446684,-1168.71,0.00020417,2]
[321977172,1712669446693,-981.74,0.00020417,2]
[321977173,1712669446702,-741.39,0.00020417,2]
[321977174,1712669446711,-500.0,0.00020417,2]
[321977175,1712669446721,-717.08,0.00020417,2]
[321977176,1712669446730,-1146.55,0.00020417,2]
[321977177,1712669446739,-1509.06,0.00020417,2]
[321977178,1712669446748,-676.84,0.00020417,2]
[321977179,1712669446757,-1519.72,0.00020417,2]
[321977180,1712669446766,-827.28,0.00020417,2]
[321977181,1712669446775,-500.0,0.00020417,2]
[321977182,1712669446784,-285.21552612,0.00020417,2]
[321977183,1712669446793,-1068.63,0.00020417,2]
[321977184,1712669446802,-1134.69,0.00020417,2]
[321977185,1712669446812,-1360.22,0.00020417,2]
[321977186,1712669446821,-500.0,0.00020417,2]
[321977187,1712669446830,-1167.61,0.00020417,2]
[321977188,1712669446839,-820.87,0.00020417,2]
[321977189,1712669446848,-189.97811364,0.00020417,2]
[321977190,1712669446859,-500.0,0.00020417,2]
[321977191,1712669446869,-675.79,0.00020417,2]
[321977192,1712669446878,-648.41,0.00020417,2]
[321977193,1712669446887,-1324.47,0.00020417,2]
[321977194,1712669446896,-1060.73,0.00020417,2]
[321977195,1712669446906,-936.62,0.00020417,2]
[321977196,1712669446915,-500.0,0.00020417,2]
[321977197,1712669446924,-2909.33,0.00020417,2]
[321977198,1712669446933,-500.0,0.00020417,2]
[321977199,1712669446943,-1061.87,0.00020417,2]
[321977200,1712669446952,-500.0,0.00020417,2]
[321977201,1712669446961,-500.0,0.00020417,2]
[321977202,1712669446970,-500.0,0.00020417,2]
[321977203,1712669446979,-500.0,0.00020417,2]
[321977204,1712669446989,-573.55,0.00020417,2]
[321977205,1712669446998,-500.0,0.00020417,2]
[321977206,1712669447007,-1640.08,0.00020417,2]
[321977207,1712669447017,-500.0,0.00020417,2]
[321977208,1712669447026,-500.0,0.00020417,2]
[321977209,1712669447035,-963.59,0.00020417,2]
[321977210,1712669447045,-996.85,0.00020417,2]
[321977211,1712669447054,-500.0,0.00020417,2]
[321977212,1712669447063,-1027.12,0.00020417,2]
[321977213,1712669447073,-2069.43,0.00020417,2]
[321977214,1712669447082,-500.0,0.00020417,2]
[321977215,1712669447092,-864.48,0.00020417,2]
[321977216,1712669447102,-1049.18,0.00020417,2]
[321977217,1712669447112,-500.0,0.00020417,2]
[321977218,1712669447121,-500.0,0.00020417,2]
[321977219,1712669447131,-595.48,0.00020417,2]
[321977220,1712669447139,-500.0,0.00020417,2]
[321977221,1712669447149,-500.0,0.00020417,2]
[321977222,1712669447159,-500.0,0.00020417,2]
[321977223,1712669447168,-1681.56,0.00020417,2]
[321977224,1712669447178,-417.058545,0.00020417,2]
[321977225,1712669447187,-1170.49,0.00020417,2]
[321977226,1712669447196,-1085.61,0.00020417,2]
[321977227,1712669447205,-500.0,0.00020417,2]
[321977228,1712669447214,-1249.99,0.00020417,2]
[321977229,1712669447223,-3113.72,0.00020417,2]
[321977230,1712669447233,-1458.67,0.00020417,2]
[321977231,1712669447243,-5345.61,0.00020417,2]
[321977232,1712669447252,-500.0,0.00020417,2]
[321977233,1712669447262,-733.1,0.00020417,2]
[321977234,1712669447272,-10188.83,0.00020417,2]
[321977235,1712669447282,-1366.87,0.00020417,2]
[321977236,1712669447291,-5960.33,0.00020417,2]
[321977237,1712669447300,-346.43678847,0.00020417,2]
[321977238,1712669447311,-500.0,0.00020417,2]
[321977239,1712669447321,-643.58,0.00020417,2]
[321977240,1712669447332,-500.0,0.00020417,2]
[321977241,1712669447341,-15193.48,0.00020417,2]
[321977242,1712669447352,-2186.12,0.00020417,2]
[321977243,1712669447362,-917.53,0.00020417,2]
[321977244,1712669447371,-4961.31,0.00020417,2]
[321977245,1712669447381,-9935.38,0.00020417,2]
[321977246,1712669447391,-1899.52,0.00020417,2]
[321977247,1712669447401,-1311.42,0.00020417,2]
[321977248,1712669447410,-9486.91,0.00020417,2]
[321977249,1712669447420,-569.96,0.00020417,2]
[321977250,1712669447429,-1506.36,0.00020417,2]
[321977251,1712669447443,-1685.47,0.00020417,2]
[321977252,1712669447453,-20874.07,0.00020417,2]
[321977253,1712669447462,-1526.76,0.00020417,2]
[321977254,1712669447472,-500.0,0.00020417,2]
[321977255,1712669447482,-15761.41,0.00020417,2]
[321977256,1712669447491,-712.91,0.00020417,2]
[321977257,1712669447501,-583.85,0.00020417,2]
[321977258,1712669447511,-500.0,0.00020417,2]
[321977259,1712669447520,-850.66,0.00020417,2]
[321977260,1712669447530,-500.0,0.00020417,2]
[321977261,1712669447540,-500.0,0.00020417,2]
[321977262,1712669447551,-48042.9,0.00020417,2]
[321977263,1712669447560,-1638.35,0.00020417,2]
[321977264,1712669447569,-1630.24,0.00020417,2]
[321977265,1712669447579,-2037.01,0.00020417,2]
[321977266,1712669447589,-1233.01,0.00020417,2]
[321977267,1712669447598,-1488.2,0.00020417,2]
[321977268,1712669447609,-2829.94,0.00020417,2]
[321977269,1712669447618,-786.56,0.00020417,2]
[321977270,1712669447628,-5839.93,0.00020417,2]
[321977271,1712669447637,-4227.66,0.00020417,2]
[321977272,1712669447647,-1751.36,0.00020417,2]
[321977273,1712669447658,-1340.59,0.00020417,2]
[321977274,1712669447667,-1281.32,0.00020417,2]
[321977275,1712669447676,-500.0,0.00020417,2]
[321977276,1712669447686,-738.44,0.00020417,2]
[321977277,1712669447695,-2096.46,0.00020417,2]
[321977278,1712669447705,-500.0,0.00020417,2]
[321977279,1712669447714,-576.36,0.00020418,2]
[321977280,1712669447724,-500.0,0.00020418,2]
[321977281,1712669447733,-538.19,0.00020418,2]
[321977282,1712669447743,-500.0,0.00020418,2]
[321977283,1712669447753,-500.0,0.00020418,2]
[321977284,1712669447762,-500.0,0.00020418,2]
[321977285,1712669447772,-191.57882634,0.00020418,2]
[321977286,1712669447782,-654.22,0.00020418,2]
[321977287,1712669447791,-500.0,0.00020418,2]
[321977288,1712669447800,-500.0,0.00020418,2]
[321977289,1712669447810,-199.09468498,0.00020418,2]
[321977290,1712669447822,-578.36,0.00020418,2]
[321977291,1712669447832,-500.0,0.00020418,2]
[321977292,1712669447841,-500.0,0.00020418,2]
[321977293,1712669447852,-500.0,0.00020418,2]
[321977294,1712669447862,-500.0,0.00020418,2]
[321977295,1712669447871,-500.0,0.00020418,2]
[321977296,1712669447880,-500.0,0.00020418,2]
[321977297,1712669447890,-500.0,0.00020418,2]
[321977298,1712669447899,-500.0,0.00020418,2]
[321977299,1712669447908,-518.51863991,0.00020418,2]
[321977300,1712669447918,-500.0,0.00020418,2]
[321977301,1712669447927,-580.64,0.00020418,2]
[321977302,1712669447936,-500.0,0.00020418,2]
[321977303,1712669447947,-500.0,0.00020418,2]
[321977304,1712669447956,-500.0,0.00020418,2]
[321977305,1712669447965,-170.05053167,0.00020418,2]
[321977306,1712669447974,-672.72,0.00020418,2]
[321977307,1712669447984,-500.0,0.00020418,2]
[321977308,1712669447993,-398.3040009,0.00020418,2]
[321977309,1712669448002,-500.0,0.00020418,2]
[321977310,1712669448012,-539.54,0.00020418,2]
[321977311,1712669448021,-500.0,0.00020418,2]
[321977312,1712669448030,-500.0,0.00020418,2]
[321977313,1712669448039,-500.0,0.00020418,2]
[321977314,1712669448049,-500.0,0.00020418,2]
[321977315,1712669448058,-500.0,0.00020418,2]
[321977316,1712669448067,-500.0,0.00020418,2]
[321977317,1712669448077,-500.0,0.00020418,2]
[321977318,1712669448086,-500.0,0.00020418,2]
[321977319,1712669448095,-500.0,0.00020418,2]
[321977320,1712669448106,-500.0,0.00020418,2]
[321977321,1712669448115,-500.0,0.00020418,2]
[321977322,1712669448124,-541.91,0.00020418,2]
[321977323,1712669448134,-500.0,0.00020418,2]
[321977324,1712669448143,-500.0,0.00020418,2]
[321977325,1712669448154,-615.19232376,0.00020418,2]
[321977326,1712669448163,-500.0,0.00020418,2]
[321977327,1712669448173,-500.0,0.00020418,2]
[321977328,1712669448182,-500.0,0.00020418,2]
[321977329,1712669448191,-500.0,0.00020418,2]
[321977330,1712669448200,-500.0,0.00020418,2]
[321977331,1712669448210,-359.97190843,0.00020418,2]
[321977332,1712669448219,-500.0,0.00020418,2]
[321977333,1712669448229,-500.0,0.00020418,2]
[321977334,1712669448238,-500.0,0.00020418,2]
[321977335,1712669448247,-500.0,0.00020418,2]
[321977336,1712669448256,-500.0,0.00020418,2]
[321977337,1712669448266,-500.0,0.00020418,2]
[321977338,1712669448275,-500.0,0.00020418,2]
[321977339,1712669448285,-500.0,0.00020418,2]
[321977340,1712669448294,-540.99,0.00020418,2]
[321977341,1712669448303,-500.0,0.00020418,2]
[321977342,1712669448313,-528.45552179,0.00020418,2]
[321977343,1712669448322,-504.51,0.00020418,2]
[321977344,1712669448349,-500.0,0.00020418,2]
[321977345,1712669448384,-500.0,0.00020418,2]
[321977346,1712669448394,-533.54,0.00020418,2]
[321977347,1712669448404,-175.70152636,0.00020418,2]
[321977348,1712669448413,-500.0,0.00020418,2]
[321977349,1712669448422,-500.0,0.00020418,2]
[321977350,1712669448432,-500.0,0.00020418,2]
[321977351,1712669448441,-500.0,0.00020418,2]
[321977352,1712669448451,-560.53438577,0.00020418,2]
[321977353,1712669448462,-500.0,0.00020418,2]
[321977354,1712669448472,-514.13,0.00020418,2]
[321977355,1712669448481,-500.0,0.00020418,2]
[321977356,1712669448491,-500.0,0.00020418,2]
[321977357,1712669448502,-454.15241677,0.00020418,2]
[321977358,1712669448512,-187.13570331,0.00020418,2]
[321977359,1712669448521,-500.0,0.00020418,2]
[321977360,1712669448531,-638.9390582,0.00020418,2]
[321977361,1712669448543,-500.0,0.00020418,2]
[321977362,1712669448804,-500.0,0.00020418,2]
[321977363,1712669448817,-500.0,0.00020418,2]
[321977364,1712669448827,-500.0,0.00020418,2]
[321977365,1712669448836,-531.9046593,0.00020418,2]
[321977366,1712669448846,-500.0,0.00020418,2]
[321977367,1712669448856,-500.0,0.00020418,2]
[321977368,1712669448866,-500.0,0.00020418,2]
[321977369,1712669448875,-500.0,0.00020418,2]
[321977370,1712669448886,-500.0,0.00020418,2]
[321977371,1712669448896,-500.0,0.00020418,2]
[321977372,1712669448905,-500.0,0.00020418,2]
[321977373,1712669448915,-500.0,0.00020418,2]
[321977374,1712669448925,-510.8737949,0.00020418,2]
[321977375,1712669448934,-500.0,0.00020418,2]
[321977376,1712669448943,-500.0,0.00020418,2]
[321977377,1712669448952,-500.0,0.00020418,2]
[321977378,1712669448962,-500.0,0.00020418,2]
[321977379,1712669448972,-500.0,0.00020418,2]
[321977380,1712669448981,-500.0,0.00020418,2]
[321977381,1712669448991,-500.0,0.00020418,2]
[321977382,1712669448999,-841.07,0.00020418,2]
[321977383,1712669449009,-500.0,0.00020418,2]
[321977384,1712669449018,-560.8,0.00020418,2]
[321977385,1712669449028,-571.66144019,0.00020418,2]
[321977386,1712669449037,-500.0,0.00020418,2]
[321977387,1712669449047,-500.0,0.00020418,2]
[321977388,1712669449056,-500.0,0.00020418,2]
[321977389,1712669449066,-500.0,0.00020418,2]
[321977390,1712669449076,-287.09872362,0.00020418,2]
[321977391,1712669449086,-500.0,0.00020418,2]
[321977392,1712669449095,-500.0,0.00020418,2]
[321977393,1712669449107,-778.86,0.00020418,2]
[321977394,1712669449117,-1011.81,0.00020418,2]
[321977395,1712669449126,-254.87015775,0.00020418,2]
[321977396,1712669449136,-500.0,0.00020418,2]
[321977397,1712669449145,-500.0,0.00020418,2]
[321977398,1712669449154,-500.0,0.00020418,2]
[321977399,1712669449164,-500.0,0.00020418,2]
[321977400,1712669449174,-611.62505785,0.00020418,2]
[321977401,1712669449184,-500.0,0.00020418,2]
[321977402,1712669449194,-286.54280358,0.00020418,2]
[321977403,1712669449203,-799.05,0.00020418,2]
[321977404,1712669449213,-500.0,0.00020418,2]
[321977405,1712669449223,-500.0,0.00020418,2]
[321977406,1712669449232,-500.0,0.00020418,2]
[321977407,1712669449241,-500.0,0.00020418,2]
[321977408,1712669449251,-500.0,0.00020418,2]
[321977409,1712669449261,-500.0,0.00020418,2]
[321977410,1712669449270,-500.0,0.00020418,2]
[321977411,1712669449280,-500.0,0.00020418,2]
[321977412,1712669449289,-500.0,0.00020418,2]
[321977413,1712669449298,-500.0,0.00020418,2]
[321977414,1712669449308,-500.0,0.00020418,2]
[321977415,1712669449317,-151.31138887,0.00020418,2]
[321977416,1712669449326,-500.0,0.00020418,2]
[321977417,1712669449336,-500.0,0.00020418,2]
[321977418,1712669449345,-500.0,0.00020418,2]
[321977419,1712669449355,-500.0,0.00020418,2]
[321977420,1712669449363,-500.0,0.00020418,2]
[321977421,1712669449372,-500.0,0.00020418,2]
[321977422,1712669449381,-547.45,0.00020418,2]
[321977423,1712669449391,-500.0,0.00020418,2]
[321977424,1712669449401,-500.0,0.00020418,2]
[321977425,1712669449411,-500.0,0.00020418,2]
[321977426,1712669449420,-500.0,0.00020418,2]
[321977427,1712669449429,-500.0,0.00020418,2]
[321977428,1712669449443,-500.0,0.00020418,2]
[321977429,1712669449453,-500.0,0.00020418,2]
[321977430,1712669449462,-736.14,0.00020418,2]
[321977431,1712669449471,-500.0,0.00020418,2]
[321977432,1712669449480,-500.0,0.00020418,2]
[321977433,1712669449491,-500.0,0.00020418,2]
[321977434,1712669449500,-500.0,0.00020418,2]
[321977435,1712669449510,-611.75,0.00020418,2]
[321977436,1712669449519,-693.22,0.00020418,2]
[321977437,1712669449529,-500.0,0.00020418,2]
[321977438,1712669449539,-500.0,0.00020418,2]
[321977439,1712669449549,-185.70305778,0.00020418,2]
[321977440,1712669449559,-500.0,0.00020418,2]
[321977441,1712669449568,-500.0,0.00020418,2]
[321977442,1712669449578,-559.59,0.00020418,2]
[321977443,1712669449588,-500.0,0.00020418,2]
[321977444,1712669449598,-1347.83,0.00020418,2]
[321977445,1712669449609,-4461.69,0.00020418,2]
[321977446,1712669449618,-500.0,0.00020418,2]
[321977447,1712669449629,-790.92,0.00020418,2]
[321977448,1712669449638,-1025.31,0.00020418,2]
[321977449,1712669449646,-500.0,0.00020418,2]
[321977450,1712669449656,-500.0,0.00020418,2]
[321977451,1712669449666,-500.0,0.00020418,2]
[321977452,1712669449675,-2957.83,0.00020418,2]
[321977453,1712669449685,-979.62,0.00020418,2]
[321977454,1712669449694,-538.81,0.00020418,2]
[321977455,1712669449703,-500.0,0.00020418,2]
[321977456,1712669449712,-5138.6,0.00020418,2]
[321977457,1712669449722,-878.8,0.00020418,2]
[321977458,1712669449731,-1024.8,0.00020418,2]
[321977459,1712669449741,-8631.68,0.00020418,2]
[321977460,1712669449750,-500.0,0.00020418,2]
[321977461,1712669449760,-500.0,0.00020418,2]
[321977462,1712669449769,-500.0,0.00020418,2]
[321977463,1712669449778,-2758.84,0.00020418,2]
[321977464,1712669449788,-2079.94,0.00020418,2]
[321977465,1712669449798,-500.0,0.00020418,2]
[321977466,1712669449808,-2883.95,0.00020418,2]
[321977467,1712669449817,-500.0,0.00020418,2]
[321977468,1712669449827,-5800.91,0.00020418,2]
[321977469,1712669449837,-500.0,0.00020418,2]
[321977470,1712669449847,-504.26,0.00020418,2]
[321977471,1712669449859,-500.0,0.00020418,2]
[321977472,1712669449869,-14157.62,0.00020418,2]
[321977473,1712669449878,-500.0,0.00020418,2]
[321977474,1712669449888,-367.47596915,0.00020418,2]
[321977475,1712669449898,-2620.71,0.00020418,2]
[321977476,1712669449907,-500.0,0.00020418,2]
[321977477,1712669449918,-500.0,0.00020418,2]
[321977478,1712669449928,-2424.18,0.00020418,2]
[321977479,1712669449938,-500.0,0.00020418,2]
[321977480,1712669449948,-3632.21,0.00020418,2]
[321977481,1712669449959,-562.5,0.00020418,2]
[321977482,1712669449969,-664.59,0.00020418,2]
[321977483,1712669449979,-2487.56,0.00020418,2]
[321977484,1712669449989,-500.0,0.00020418,2]
[321977485,1712669449999,-5256.49,0.00020418,2]
[321977486,1712669450009,-3730.73,0.00020418,2]
[321977487,1712669450019,-500.0,0.00020418,2]
[321977488,1712669450029,-500.0,0.00020418,2]
[321977489,1712669450039,-500.0,0.00020418,2]
[321977490,1712669450049,-2718.8,0.00020418,2]
[321977491,1712669450059,-746.97,0.00020418,2]
[321977492,1712669450069,-500.0,0.00020418,2]
[321977493,1712669450079,-586.35,0.00020418,2]
[321977494,1712669450087,-500.0,0.00020418,2]
[321977495,1712669450097,-500.0,0.00020418,2]
[321977496,1712669450108,-3492.95,0.00020418,2]
[321977497,1712669450116,-500.0,0.00020418,2]
[321977498,1712669450126,-500.0,0.00020418,2]
[321977499,1712669450135,-8085.85,0.00020418,2]
[321977500,1712669450145,-500.0,0.00020418,2]
[321977501,1712669450155,-500.0,0.00020418,2]
[321977502,1712669450165,-500.0,0.00020418,2]
[321977503,1712669450174,-2692.47,0.00020418,2]
[321977504,1712669450184,-500.0,0.00020418,2]
[321977505,1712669450194,-500.0,0.00020418,2]
[321977506,1712669450203,-373216.58502418,0.00020419,2]
[321977507,1712669450212,-4046.81,0.00020419,2]
[321977508,1712669450221,-8016.36,0.00020419,2]
[321977509,1712669450231,-2502.8,0.00020419,2]
[321977510,1712669450241,-2139.32,0.00020419,2]
[321977511,1712669450250,-3204.66,0.00020419,2]
[321977512,1712669450259,-4527.77,0.00020419,2]
[321977513,1712669450268,-4197.3,0.00020419,2]
[321977514,1712669450278,-1703.39,0.00020419,2]
[321977515,1712669450287,-1501.94,0.00020419,2]
[321977516,1712669450297,-2450.26,0.00020419,2]
[321977517,1712669450307,-2597.8,0.00020419,2]
[321977518,1712669450317,-2948.55,0.00020419,2]
[321977519,1712669450328,-2945.11,0.00020419,2]
[321977520,1712669450338,-2888.21,0.00020419,2]
[321977521,1712669450347,-4743.09,0.00020419,2]
[321977522,1712669450359,-7614.55,0.00020419,2]
[321977523,1712669450369,-37559.79,0.00020419,2]
[321977524,1712669450378,-9274.11,0.00020419,2]
[321977525,1712669450387,-2178.84,0.00020419,2]
[321977526,1712669450396,-3238.99,0.00020419,2]
[321977527,1712669450406,-8928.77,0.00020419,2]
[321977528,1712669450415,-180.80818,0.0002047,2]
[321977529,1712669450425,-907.38533158,0.00020483,2]
[321977530,1712669450435,-155.0,0.00020488,2]
[321977531,1712669450446,-257.86549205,0.00020488,2]
[321977532,1712669450457,-781.74783511,0.00020488,2]
[321977533,1712669450467,-155.08538378,0.00020498,2]
[321977534,1712669450477,-202.30351054,0.00020498,2]
[321977535,1712669450486,-4714.73095739,0.00020498,2]
[321977536,1712669450496,-3374.18597777,0.00020498,2]
[321977537,1712669450505,-233.85503616,0.00020498,2]
[321977538,1712669450515,-155.0,0.00020498,2]
[321977539,1712669450526,-266.33427453,0.00020498,2]
[321977540,1712669450536,-500.0,0.00020499,2]
[321977541,1712669450547,-500.0,0.00020499,2]
[321977542,1712669450557,-702.51,0.00020499,2]
[321977543,1712669450566,-500.0,0.00020499,2]
[321977544,1712669450576,-1015.56,0.00020499,2]
[321977545,1712669450586,-500.0,0.00020499,2]
[321977546,1712669450596,-500.0,0.00020499,2]
[321977547,1712669450608,-837.54,0.00020499,2]
[321977548,1712669450618,-500.0,0.00020499,2]
[321977549,1712669450628,-500.0,0.00020499,2]
[321977550,1712669450638,-500.0,0.00020499,2]
[321977551,1712669450648,-631.55737478,0.00020499,2]
[321977552,1712669450657,-579.79,0.00020499,2]
[321977553,1712669450666,-724.73,0.00020499,2]
[321977554,1712669450676,-500.0,0.00020499,2]
[321977555,1712669450686,-612.05,0.00020499,2]
[321977556,1712669450696,-1063.36,0.00020499,2]
[321977557,1712669450706,-500.0,0.00020499,2]
[321977558,1712669450715,-1834.21,0.00020499,2]
[321977559,1712669450725,-944.13,0.00020499,2]
[321977560,1712669450735,-503.57,0.00020499,2]
[321977561,1712669450745,-500.0,0.00020499,2]
[321977562,1712669450754,-500.0,0.00020499,2]
[321977563,1712669450763,-1082.27,0.00020499,2]
[321977564,1712669450773,-979.61,0.00020499,2]
[321977565,1712669450783,-500.0,0.00020499,2]
[321977566,1712669450793,-1003.1,0.00020499,2]
[321977567,1712669450802,-500.0,0.00020499,2]
[321977568,1712669450811,-849.64,0.00020499,2]
[321977569,1712669450821,-615.33,0.00020499,2]
[321977570,1712669450830,-500.0,0.00020499,2]
[321977571,1712669450840,-1113.95,0.00020499,2]
[321977572,1712669450849,-1030.21,0.00020499,2]
[321977573,1712669450860,-1254.36,0.00020499,2]
[321977574,1712669450869,-500.0,0.00020499,2]
[321977575,1712669450879,-2164.49,0.00020499,2]
[321977576,1712669450888,-1184.59,0.00020499,2]
[321977577,1712669450897,-500.0,0.00020499,2]
[321977578,1712669450906,-1458.67,0.00020499,2]
[321977579,1712669450916,-1462.54,0.00020499,2]
[321977580,1712669450925,-644.17,0.00020499,2]
[321977581,1712669450934,-500.0,0.00020499,2]
[321977582,1712669450945,-500.0,0.00020499,2]